[Event "*** Titled Tuesday Blitz"]
[Site "Chess.com"]
[Date "2020.04.07"]
[Round "2"]
[White "vugarrasulov"]
[Black "djogrodek1"]
[Result "1-0"]
[WhiteElo "2768"]
[BlackElo "2513"]
[TimeControl "180+1"]
[EndTime "13:18:50 PDT"]
[Termination "vugarrasulov won by resignation"]

1. e4 {[%clk 0:03:00.9]} 1... c6 {[%clk 0:02:59.3]} 2. Nc3 {[%clk 0:02:59.7]}
2... d5 {[%clk 0:03:00.2]} 3. Nf3 {[%clk 0:03:00]} 3... dxe4 {[%clk 0:02:59.4]}
4. Nxe4 {[%clk 0:03:00]} 4... Nf6 {[%clk 0:02:59.7]} 5. Qe2 {[%clk 0:02:59.3]}
5... Na6 {[%clk 0:02:52.7]} 6. d4 {[%clk 0:02:52.9]} 6... Qd5 {[%clk 0:02:52.2]}
7. Nxf6+ {[%clk 0:02:48.8]} 7... gxf6 {[%clk 0:02:53.1]} 8. c4 {[%clk
0:02:47.3]} 8... Qa5+ {[%clk 0:02:21.1]} 9. Bd2 {[%clk 0:02:46.9]} 9... Qb6
{[%clk 0:02:21.2]} 10. Bc3 {[%clk 0:02:42.9]} 10... Bf5 {[%clk 0:02:20.2]} 11.
a3 {[%clk 0:02:35.3]} 11... Bh6 {[%clk 0:02:01.2]} 12. g3 {[%clk 0:02:35.1]}
12... Qb3 {[%clk 0:01:42.6]} 13. c5 {[%clk 0:01:44.5]} 13... Nc7 {[%clk
0:01:30.9]} 14. Qc4 {[%clk 0:01:44.5]} 14... Qxc4 {[%clk 0:01:19.5]} 15. Bxc4
{[%clk 0:01:45.4]} 15... Be4 {[%clk 0:01:19.4]} 16. Ke2 {[%clk 0:01:45]} 16...
Nd5 {[%clk 0:01:19.2]} 17. Rhe1 {[%clk 0:01:38]} 17... O-O-O {[%clk 0:01:18.6]}
18. Nd2 {[%clk 0:01:21.2]} 18... Bg6 {[%clk 0:01:09.2]} 19. Nf1 {[%clk
0:01:21.6]} 19... e6 {[%clk 0:01:05.1]} 20. Ne3 {[%clk 0:01:21.2]} 20... Bh5+
{[%clk 0:01:01.4]} 21. Kf1 {[%clk 0:01:17.2]} 21... Bf3 {[%clk 0:00:55.1]} 22.
Bd2 {[%clk 0:01:05]} 22... Bg7 {[%clk 0:00:50.5]} 23. Nc2 {[%clk 0:00:57.7]}
23... h5 {[%clk 0:00:46.7]} 24. h4 {[%clk 0:00:56.9]} 24... f5 {[%clk
0:00:40.8]} 25. Bd3 {[%clk 0:00:56.6]} 25... Nf6 {[%clk 0:00:36]} 26. Bg5 {[%clk
0:00:56.2]} 26... Rd7 {[%clk 0:00:36.1]} 27. Re3 {[%clk 0:00:53.9]} 27... Be4
{[%clk 0:00:32.4]} 28. Bxf6 {[%clk 0:00:48.7]} 28... Bxd3+ {[%clk 0:00:32.5]}
29. Rxd3 {[%clk 0:00:49.6]} 29... Bxf6 {[%clk 0:00:33.4]} 30. Rad1 {[%clk
0:00:50.2]} 30... Rhd8 {[%clk 0:00:33.9]} 31. Ke2 {[%clk 0:00:50.8]} 31... Rg8
{[%clk 0:00:29.9]} 32. Ne3 {[%clk 0:00:45.5]} 32... Rgd8 {[%clk 0:00:27.8]} 33.
Nc4 {[%clk 0:00:45.4]} 33... Kc7 {[%clk 0:00:23.5]} 34. Nd6 {[%clk 0:00:41.5]}
34... Rg8 {[%clk 0:00:21.2]} 35. b4 {[%clk 0:00:40.1]} 35... Rg4 {[%clk
0:00:19.7]} 36. b5 {[%clk 0:00:39.6]} 36... b6 {[%clk 0:00:17.4]} 37. Ne8+
{[%clk 0:00:37.7]} 37... Kd8 {[%clk 0:00:15.7]} 38. Nxf6 {[%clk 0:00:38.6]} 1-0

[Event "*** Titled Tuesday Blitz"]
[Site "Chess.com"]
[Date "2020.04.07"]
[Round "2"]
[White "mersad_98"]
[Black "Everyfishknows"]
[Result "1-0"]
[WhiteElo "2706"]
[BlackElo "2349"]
[TimeControl "180+1"]
[EndTime "13:18:53 PDT"]
[Termination "mersad_98 won by checkmate"]

1. e4 {[%clk 0:03:00.9]} 1... e5 {[%clk 0:02:54.3]} 2. Nf3 {[%clk 0:02:47.6]}
2... Nc6 {[%clk 0:02:53.4]} 3. Bb5 {[%clk 0:02:43.9]} 3... a6 {[%clk 0:02:52.2]}
4. Ba4 {[%clk 0:02:44.1]} 4... Nf6 {[%clk 0:02:51.6]} 5. O-O {[%clk 0:02:43.4]}
5... Be7 {[%clk 0:02:51.6]} 6. Re1 {[%clk 0:02:41.3]} 6... b5 {[%clk 0:02:51.3]}
7. Bb3 {[%clk 0:02:41.3]} 7... d6 {[%clk 0:02:51.8]} 8. c3 {[%clk 0:02:40.6]}
8... O-O {[%clk 0:02:52]} 9. h3 {[%clk 0:02:41.1]} 9... Bb7 {[%clk 0:02:51.7]}
10. d4 {[%clk 0:02:40.1]} 10... Re8 {[%clk 0:02:51.8]} 11. Nbd2 {[%clk
0:02:40.6]} 11... Bf8 {[%clk 0:02:50.8]} 12. Bc2 {[%clk 0:02:40.3]} 12... h6
{[%clk 0:02:50.7]} 13. a3 {[%clk 0:02:38.7]} 13... Nb8 {[%clk 0:02:44.6]} 14. b4
{[%clk 0:02:28.1]} 14... Nbd7 {[%clk 0:02:36.7]} 15. Bb2 {[%clk 0:02:27.8]}
15... c5 {[%clk 0:02:27.1]} 16. bxc5 {[%clk 0:02:25.5]} 16... dxc5 {[%clk
0:02:26.1]} 17. d5 {[%clk 0:02:26.2]} 17... c4 {[%clk 0:02:18.4]} 18. Nf1 {[%clk
0:02:08.9]} 18... g6 {[%clk 0:02:09.3]} 19. a4 {[%clk 0:01:58.4]} 19... Nc5
{[%clk 0:02:00.8]} 20. Ba3 {[%clk 0:01:40.4]} 20... Bd6 {[%clk 0:01:47]} 21. Qd2
{[%clk 0:01:38]} 21... Kg7 {[%clk 0:01:44.2]} 22. Qe3 {[%clk 0:01:31.8]} 22...
Qc7 {[%clk 0:01:37.1]} 23. Ng3 {[%clk 0:01:28.2]} 23... Rac8 {[%clk 0:01:23.4]}
24. Nh4 {[%clk 0:01:25.2]} 24... Ng8 {[%clk 0:01:10.2]} 25. axb5 {[%clk
0:01:00.2]} 25... axb5 {[%clk 0:01:09.7]} 26. Bb4 {[%clk 0:00:59.9]} 26... Kh7
{[%clk 0:00:51.9]} 27. Ra7 {[%clk 0:00:49.7]} 27... Ra8 {[%clk 0:00:49.4]} 28.
Bxc5 {[%clk 0:00:40.5]} 28... Bxc5 {[%clk 0:00:05.7]} 29. Rxb7 {[%clk
0:00:40.7]} 29... Bxe3 {[%clk 0:00:06.1]} 30. Rxc7 {[%clk 0:00:39.6]} 30... Bd2
{[%clk 0:00:06.2]} 31. Rxf7+ {[%clk 0:00:39.1]} 31... Kh8 {[%clk 0:00:06.8]} 32.
Nxg6# {[%clk 0:00:39.8]} 1-0

[Event "*** Titled Tuesday Blitz"]
[Site "Chess.com"]
[Date "2020.04.07"]
[Round "2"]
[White "ChristianAlm"]
[Black "annacramling"]
[Result "1-0"]
[WhiteElo "2401"]
[BlackElo "1960"]
[TimeControl "180+1"]
[EndTime "13:18:54 PDT"]
[Termination "ChristianAlm won on time"]

1. d4 {[%clk 0:03:00.9]} 1... Nf6 {[%clk 0:02:57.3]} 2. Bg5 {[%clk 0:03:00.3]}
2... d5 {[%clk 0:02:49.2]} 3. Nd2 {[%clk 0:02:58.7]} 3... e6 {[%clk 0:02:22.9]}
4. e3 {[%clk 0:02:57.4]} 4... c5 {[%clk 0:02:21]} 5. c3 {[%clk 0:02:57]} 5...
Nc6 {[%clk 0:02:19.9]} 6. f4 {[%clk 0:02:56.3]} 6... b6 {[%clk 0:02:12.3]} 7.
Ngf3 {[%clk 0:02:55.8]} 7... Be7 {[%clk 0:02:06.3]} 8. Bd3 {[%clk 0:02:54.9]}
8... O-O {[%clk 0:02:02.5]} 9. O-O {[%clk 0:02:54.3]} 9... Bb7 {[%clk
0:02:00.4]} 10. Ne5 {[%clk 0:02:52.5]} 10... h6 {[%clk 0:01:55.4]} 11. Bh4
{[%clk 0:02:50.3]} 11... Qc7 {[%clk 0:01:42.8]} 12. Qf3 {[%clk 0:02:34.2]} 12...
Ne4 {[%clk 0:01:18.3]} 13. Nxe4 {[%clk 0:02:29.7]} 13... dxe4 {[%clk 0:01:15.9]}
14. Bxe4 {[%clk 0:02:20.7]} 14... Nxe5 {[%clk 0:00:46]} 15. fxe5 {[%clk
0:02:15.7]} 15... Bxh4 {[%clk 0:00:38.1]} 16. Bxb7 {[%clk 0:02:14.7]} 16... Rab8
{[%clk 0:00:36.4]} 17. Be4 {[%clk 0:02:14.1]} 17... Bg5 {[%clk 0:00:24.8]} 18.
Rac1 {[%clk 0:01:50.1]} 18... f5 {[%clk 0:00:22.8]} 19. exf6 {[%clk 0:01:45.4]}
19... Rxf6 {[%clk 0:00:22.8]} 20. Qh3 {[%clk 0:01:41.8]} 20... Rbf8 {[%clk
0:00:20.1]} 21. Rxf6 {[%clk 0:00:50.2]} 21... Rxf6 {[%clk 0:00:18.7]} 22. Rf1
{[%clk 0:00:49.5]} 22... Rxf1+ {[%clk 0:00:16.4]} 23. Kxf1 {[%clk 0:00:47.4]}
23... Qf7+ {[%clk 0:00:11.7]} 24. Ke2 {[%clk 0:00:46.9]} 24... Qf6 {[%clk
0:00:07.5]} 25. d5 {[%clk 0:00:41.3]} 25... exd5 {[%clk 0:00:05.1]} 26. Bxd5+
{[%clk 0:00:42.2]} 26... Kh7 {[%clk 0:00:02.7]} 27. Be4+ {[%clk 0:00:39]} 27...
Kg8 {[%clk 0:00:03]} 28. Qc8+ {[%clk 0:00:37.3]} 28... Qd8 {[%clk 0:00:01.4]}
29. Qe6+ {[%clk 0:00:35.2]} 29... Kh8 {[%clk 0:00:01.1]} 30. Qf5 {[%clk
0:00:24.8]} 30... Qg8 {[%clk 0:00:01.3]} 31. b3 {[%clk 0:00:16.6]} 1-0

[Event "*** Titled Tuesday Blitz"]
[Site "Chess.com"]
[Date "2020.04.07"]
[Round "2"]
[White "sandromareco"]
[Black "asms9699"]
[Result "1-0"]
[WhiteElo "2907"]
[BlackElo "2579"]
[TimeControl "180+1"]
[EndTime "13:18:55 PDT"]
[Termination "sandromareco won by resignation"]

1. Nf3 {[%clk 0:03:00.9]} 1... d5 {[%clk 0:02:59.7]} 2. e3 {[%clk 0:02:59.1]}
2... Nf6 {[%clk 0:02:59.5]} 3. c4 {[%clk 0:02:59.1]} 3... c6 {[%clk 0:02:59.4]}
4. Nc3 {[%clk 0:02:57.9]} 4... a6 {[%clk 0:02:58.8]} 5. d4 {[%clk 0:02:57.3]}
5... g6 {[%clk 0:02:59.1]} 6. h3 {[%clk 0:02:53]} 6... Bg7 {[%clk 0:02:59.1]} 7.
Bd3 {[%clk 0:02:52.7]} 7... O-O {[%clk 0:02:59.4]} 8. O-O {[%clk 0:02:52.1]}
8... dxc4 {[%clk 0:02:59.7]} 9. Bxc4 {[%clk 0:02:51.9]} 9... b5 {[%clk
0:03:00.3]} 10. Bd3 {[%clk 0:02:51.7]} 10... c5 {[%clk 0:03:00.3]} 11. a4 {[%clk
0:02:44.6]} 11... b4 {[%clk 0:02:51.7]} 12. Ne4 {[%clk 0:02:44.3]} 12... cxd4
{[%clk 0:02:49.9]} 13. Nxd4 {[%clk 0:02:40.9]} 13... Bb7 {[%clk 0:02:46.7]} 14.
Nc5 {[%clk 0:02:32.4]} 14... Bd5 {[%clk 0:02:40.8]} 15. Bd2 {[%clk 0:02:27.7]}
15... Qb6 {[%clk 0:02:31.6]} 16. Ndb3 {[%clk 0:02:04.8]} 16... a5 {[%clk
0:02:01.1]} 17. e4 {[%clk 0:02:03.1]} 17... Bc6 {[%clk 0:02:00]} 18. Be3 {[%clk
0:02:03.2]} 18... Qd8 {[%clk 0:01:45.7]} 19. Rc1 {[%clk 0:01:58.4]} 19... Nfd7
{[%clk 0:01:43.1]} 20. Qe2 {[%clk 0:01:51.7]} 20... Ne5 {[%clk 0:01:35.9]} 21.
Bb5 {[%clk 0:01:49.8]} 21... Bxb5 {[%clk 0:01:29.4]} 22. Qxb5 {[%clk 0:01:49.5]}
22... Qe8 {[%clk 0:00:52.9]} 23. Qxe8 {[%clk 0:01:37.2]} 23... Rxe8 {[%clk
0:00:53.8]} 24. Rfd1 {[%clk 0:01:36.7]} 24... Nec6 {[%clk 0:00:32.3]} 25. Rc2
{[%clk 0:01:31.5]} 25... Na6 {[%clk 0:00:25.4]} 26. Nd7 {[%clk 0:01:30.9]} 26...
Ne5 {[%clk 0:00:20.3]} 27. Nb6 {[%clk 0:01:30.4]} 27... Rab8 {[%clk 0:00:18.5]}
28. f4 {[%clk 0:01:30.3]} 28... Bh6 {[%clk 0:00:14.2]} 29. Nxa5 {[%clk
0:01:08.9]} 29... f6 {[%clk 0:00:11.6]} 30. b3 {[%clk 0:01:05.6]} 30... Red8
{[%clk 0:00:10.5]} 31. Rxd8+ {[%clk 0:01:04.3]} 31... Rxd8 {[%clk 0:00:11.4]}
32. Nd5 {[%clk 0:01:04]} 32... Nd3 {[%clk 0:00:10.7]} 33. Nc6 {[%clk 0:01:03.5]}
33... Rd6 {[%clk 0:00:10]} 34. Ncxe7+ {[%clk 0:01:02.7]} 34... Kf7 {[%clk
0:00:10.6]} 35. g3 {[%clk 0:01:00.8]} 35... Re6 {[%clk 0:00:09.5]} 36. Rc6
{[%clk 0:00:55.7]} 36... Rxe4 {[%clk 0:00:09]} 37. Rxa6 {[%clk 0:00:55]} 37...
g5 {[%clk 0:00:08.4]} 38. Nf5 {[%clk 0:00:53.9]} 38... Bf8 {[%clk 0:00:08]} 39.
Rxf6+ {[%clk 0:00:50.7]} 39... Kg8 {[%clk 0:00:07.8]} 40. fxg5 {[%clk
0:00:48.8]} 40... Nc5 {[%clk 0:00:07.5]} 41. Rxf8+ {[%clk 0:00:47.8]} 41... Kxf8
{[%clk 0:00:07.3]} 42. Bxc5+ {[%clk 0:00:48.5]} 42... Kf7 {[%clk 0:00:08.2]} 43.
Nd6+ {[%clk 0:00:48.2]} 1-0

[Event "*** Titled Tuesday Blitz"]
[Site "Chess.com"]
[Date "2020.04.07"]
[Round "2"]
[White "bangchess21"]
[Black "quesfr"]
[Result "1-0"]
[WhiteElo "2646"]
[BlackElo "2191"]
[TimeControl "180+1"]
[EndTime "13:18:55 PDT"]
[Termination "bangchess21 won by resignation"]

1. e4 {[%clk 0:03:00.9]} 1... e6 {[%clk 0:02:59.7]} 2. d4 {[%clk 0:03:00.2]}
2... d5 {[%clk 0:03:00.2]} 3. Nc3 {[%clk 0:03:01.1]} 3... Nf6 {[%clk 0:03:00.3]}
4. Bg5 {[%clk 0:03:01]} 4... dxe4 {[%clk 0:02:56.2]} 5. Nxe4 {[%clk 0:03:00.6]}
5... Be7 {[%clk 0:02:56.1]} 6. Bxf6 {[%clk 0:03:01]} 6... Bxf6 {[%clk
0:02:56.3]} 7. Nf3 {[%clk 0:03:01.1]} 7... Nd7 {[%clk 0:02:51.8]} 8. Qd2 {[%clk
0:03:00.6]} 8... b6 {[%clk 0:02:46.5]} 9. Bd3 {[%clk 0:02:54.7]} 9... Bb7 {[%clk
0:02:46]} 10. O-O-O {[%clk 0:02:55.2]} 10... Be7 {[%clk 0:02:40.9]} 11. h4
{[%clk 0:02:54]} 11... c6 {[%clk 0:02:37]} 12. Qf4 {[%clk 0:02:36.5]} 12... Qb8
{[%clk 0:02:21.1]} 13. Qg4 {[%clk 0:02:26.2]} 13... g6 {[%clk 0:02:00.7]} 14.
Neg5 {[%clk 0:02:22.7]} 14... Nf6 {[%clk 0:01:51.4]} 15. Qh3 {[%clk 0:02:20.8]}
15... Bc8 {[%clk 0:01:32]} 16. Ne5 {[%clk 0:02:18.5]} 16... Rf8 {[%clk
0:01:12.2]} 17. Nxc6 {[%clk 0:02:11]} 17... Qf4+ {[%clk 0:01:12]} 18. Qe3 {[%clk
0:01:50.4]} 18... Nd5 {[%clk 0:00:57.5]} 19. Qxf4 {[%clk 0:01:45.4]} 19... Nxf4
{[%clk 0:00:58.4]} 20. Be4 {[%clk 0:01:19.9]} 20... Bxg5 {[%clk 0:00:40.5]} 21.
hxg5 {[%clk 0:01:19.3]} 21... Bb7 {[%clk 0:00:40.7]} 22. g3 {[%clk 0:00:48.7]}
22... Nd5 {[%clk 0:00:17.1]} 23. Bxd5 {[%clk 0:00:43.7]} 23... exd5 {[%clk
0:00:17]} 24. Ne5 {[%clk 0:00:44]} 24... Rh8 {[%clk 0:00:12.5]} 25. Rde1 {[%clk
0:00:44.2]} 25... Kf8 {[%clk 0:00:11.2]} 26. Ng4 {[%clk 0:00:40.8]} 26... Kg7
{[%clk 0:00:09.1]} 27. Re7 {[%clk 0:00:40.5]} 27... Bc8 {[%clk 0:00:06.3]} 28.
Nh6 {[%clk 0:00:32.2]} 28... Be6 {[%clk 0:00:05.3]} 29. Re1 {[%clk 0:00:32.7]}
29... Bf5 {[%clk 0:00:01.3]} 1-0

[Event "*** Titled Tuesday Blitz"]
[Site "Chess.com"]
[Date "2020.04.07"]
[Round "2"]
[White "tonyq11"]
[Black "vladimirdamjanovic"]
[Result "0-1"]
[WhiteElo "2276"]
[BlackElo "2505"]
[TimeControl "180+1"]
[EndTime "13:18:55 PDT"]
[Termination "vladimirdamjanovic won on time"]

1. d4 {[%clk 0:03:00.9]} 1... Nf6 {[%clk 0:02:56.3]} 2. c4 {[%clk 0:03:01]} 2...
c5 {[%clk 0:02:54.9]} 3. d5 {[%clk 0:03:00.9]} 3... b5 {[%clk 0:02:54.9]} 4.
cxb5 {[%clk 0:03:01.1]} 4... a6 {[%clk 0:02:55.4]} 5. b6 {[%clk 0:03:00.8]} 5...
g6 {[%clk 0:02:55.8]} 6. Nc3 {[%clk 0:03:00.8]} 6... Bg7 {[%clk 0:02:56.4]} 7.
e4 {[%clk 0:03:00.6]} 7... d6 {[%clk 0:02:56.9]} 8. Nf3 {[%clk 0:02:56.3]} 8...
O-O {[%clk 0:02:56.4]} 9. h3 {[%clk 0:02:56.7]} 9... Nbd7 {[%clk 0:02:55]} 10.
a4 {[%clk 0:02:50.7]} 10... a5 {[%clk 0:02:54.9]} 11. Bb5 {[%clk 0:02:48.1]}
11... Nxb6 {[%clk 0:02:54]} 12. O-O {[%clk 0:02:44.8]} 12... e6 {[%clk
0:02:54.4]} 13. Bf4 {[%clk 0:02:31.9]} 13... exd5 {[%clk 0:02:48.3]} 14. exd5
{[%clk 0:02:26.5]} 14... Bb7 {[%clk 0:02:48.6]} 15. Bc6 {[%clk 0:02:22.1]} 15...
Bxc6 {[%clk 0:02:45.5]} 16. dxc6 {[%clk 0:02:23]} 16... d5 {[%clk 0:02:38.4]}
17. c7 {[%clk 0:02:20.6]} 17... Qd7 {[%clk 0:01:44.7]} 18. Ne5 {[%clk
0:02:13.4]} 18... Qf5 {[%clk 0:01:44.2]} 19. Bh2 {[%clk 0:02:05.9]} 19... d4
{[%clk 0:01:42]} 20. Nb5 {[%clk 0:02:01.5]} 20... Ne4 {[%clk 0:01:17.9]} 21. Nc6
{[%clk 0:01:09]} 21... Qd7 {[%clk 0:01:16.8]} 22. Ne5 {[%clk 0:00:57.5]} 22...
Qf5 {[%clk 0:01:16.9]} 23. Nc6 {[%clk 0:00:57.5]} 23... Qd7 {[%clk 0:01:16.8]}
24. Ne5 {[%clk 0:00:56.7]} 24... Qd5 {[%clk 0:01:17.4]} 25. Nd3 {[%clk
0:00:45.2]} 25... c4 {[%clk 0:01:17.4]} 26. Nf4 {[%clk 0:00:44.9]} 26... Qc5
{[%clk 0:01:10.4]} 27. Rc1 {[%clk 0:00:41.3]} 27... Rac8 {[%clk 0:01:08.3]} 28.
Nd3 {[%clk 0:00:39.7]} 28... Qf5 {[%clk 0:01:02.7]} 29. Nf4 {[%clk 0:00:34.3]}
29... Bh6 {[%clk 0:01:00.4]} 30. Ne2 {[%clk 0:00:29.7]} 30... d3 {[%clk
0:00:58.1]} 31. Ned4 {[%clk 0:00:26.2]} 31... Qd5 {[%clk 0:00:55.5]} 32. b3
{[%clk 0:00:10.7]} 32... Bxc1 {[%clk 0:00:53.2]} 33. bxc4 {[%clk 0:00:08.6]}
33... Qxc4 {[%clk 0:00:50.6]} 34. Qxc1 {[%clk 0:00:08.8]} 34... Qxc1 {[%clk
0:00:51.5]} 35. Rxc1 {[%clk 0:00:09.4]} 35... d2 {[%clk 0:00:39.3]} 36. Rd1
{[%clk 0:00:08.3]} 36... Nxa4 {[%clk 0:00:39.9]} 37. f3 {[%clk 0:00:04.2]} 37...
Nb2 {[%clk 0:00:40.3]} 38. fxe4 {[%clk 0:00:01.8]} 38... Nxd1 {[%clk 0:00:40.4]}
39. Bf4 {[%clk 0:00:02]} 39... Ne3 {[%clk 0:00:40.2]} 0-1

[Event "*** Titled Tuesday Blitz"]
[Site "Chess.com"]
[Date "2020.04.07"]
[Round "2"]
[White "BabyFacedAssasin"]
[Black "grzechu96"]
[Result "0-1"]
[WhiteElo "2311"]
[BlackElo "2596"]
[TimeControl "180+1"]
[EndTime "13:18:56 PDT"]
[Termination "grzechu96 won by resignation"]

1. e4 {[%clk 0:03:00.9]} 1... c5 {[%clk 0:02:59.4]} 2. Nc3 {[%clk 0:03:00.1]}
2... a6 {[%clk 0:02:59.3]} 3. Nf3 {[%clk 0:02:59.7]} 3... b5 {[%clk 0:02:58.7]}
4. d4 {[%clk 0:03:00.2]} 4... cxd4 {[%clk 0:02:59.2]} 5. Nxd4 {[%clk 0:03:01.1]}
5... Bb7 {[%clk 0:02:57.4]} 6. g3 {[%clk 0:03:01.2]} 6... d6 {[%clk 0:02:52.2]}
7. Bg2 {[%clk 0:03:00.9]} 7... e5 {[%clk 0:02:44.8]} 8. Nf5 {[%clk 0:02:57.3]}
8... Nf6 {[%clk 0:02:42]} 9. Ne3 {[%clk 0:02:52.9]} 9... Nbd7 {[%clk 0:02:40.6]}
10. Ncd5 {[%clk 0:02:52.6]} 10... Be7 {[%clk 0:02:39.2]} 11. Nf5 {[%clk
0:02:43.7]} 11... Nxd5 {[%clk 0:02:35.8]} 12. Nxg7+ {[%clk 0:02:31.2]} 12... Kf8
{[%clk 0:02:36]} 13. Bh6 {[%clk 0:02:30.2]} 13... Qa5+ {[%clk 0:02:27.8]} 14. c3
{[%clk 0:02:01.4]} 14... N5f6 {[%clk 0:02:15.3]} 15. b4 {[%clk 0:01:21.5]} 15...
Qb6 {[%clk 0:01:43.2]} 16. O-O {[%clk 0:01:03.9]} 16... Rg8 {[%clk 0:01:25.7]}
17. Nf5+ {[%clk 0:00:52.6]} 17... Ke8 {[%clk 0:01:25.9]} 18. Be3 {[%clk
0:00:47.4]} 18... Qc7 {[%clk 0:01:20.9]} 19. f4 {[%clk 0:00:43.7]} 19... Nxe4
{[%clk 0:01:10.2]} 20. Nxe7 {[%clk 0:00:37.1]} 20... Kxe7 {[%clk 0:01:11.1]} 21.
fxe5 {[%clk 0:00:32.4]} 21... Nxe5 {[%clk 0:01:11.4]} 22. Qh5 {[%clk 0:00:19.2]}
22... Nf6 {[%clk 0:00:35.1]} 23. Qh4 {[%clk 0:00:16.8]} 23... Rg6 {[%clk
0:00:25.8]} 24. Bxb7 {[%clk 0:00:14.8]} 24... Qxb7 {[%clk 0:00:25.6]} 25. Bd4
{[%clk 0:00:15.3]} 25... Qe4 {[%clk 0:00:17.5]} 26. Rae1 {[%clk 0:00:14.1]}
26... Qxh4 {[%clk 0:00:14]} 27. Bxe5 {[%clk 0:00:10.4]} 27... dxe5 {[%clk
0:00:13.6]} 28. Rxe5+ {[%clk 0:00:10.8]} 28... Kf8 {[%clk 0:00:14]} 29. Ref5
{[%clk 0:00:10.1]} 29... Qe4 {[%clk 0:00:12.5]} 30. R5f3 {[%clk 0:00:09]} 30...
Rd8 {[%clk 0:00:11.5]} 31. Rf4 {[%clk 0:00:09]} 31... Qe3+ {[%clk 0:00:11.5]}
32. Kg2 {[%clk 0:00:08.8]} 32... Rd2+ {[%clk 0:00:11.6]} 33. Kh3 {[%clk
0:00:08.9]} 33... Rh6+ {[%clk 0:00:12.1]} 0-1

[Event "*** Titled Tuesday Blitz"]
[Site "Chess.com"]
[Date "2020.04.07"]
[Round "2"]
[White "narutosmith"]
[Black "pooh2012"]
[Result "0-1"]
[WhiteElo "2204"]
[BlackElo "2460"]
[TimeControl "180+1"]
[EndTime "13:18:56 PDT"]
[Termination "pooh2012 won by resignation"]

1. c4 {[%clk 0:03:00.9]} 1... d6 {[%clk 0:02:58.5]} 2. Nc3 {[%clk 0:02:59.4]}
2... e5 {[%clk 0:02:56]} 3. d4 {[%clk 0:02:59.3]} 3... exd4 {[%clk 0:02:53.8]}
4. Qxd4 {[%clk 0:03:00.2]} 4... Nc6 {[%clk 0:02:53.9]} 5. Qd2 {[%clk 0:03:00.4]}
5... Be6 {[%clk 0:02:48.3]} 6. b3 {[%clk 0:02:57.4]} 6... g6 {[%clk 0:02:47.2]}
7. Bb2 {[%clk 0:02:54.9]} 7... Bg7 {[%clk 0:02:47.2]} 8. g3 {[%clk 0:02:54.9]}
8... h5 {[%clk 0:02:45.8]} 9. h3 {[%clk 0:02:53.1]} 9... Qd7 {[%clk 0:02:33.8]}
10. Bg2 {[%clk 0:02:52.4]} 10... O-O-O {[%clk 0:02:22.1]} 11. O-O-O {[%clk
0:02:43.1]} 11... Kb8 {[%clk 0:02:05.8]} 12. e3 {[%clk 0:02:42.9]} 12... Nge7
{[%clk 0:01:52.5]} 13. Nge2 {[%clk 0:02:42.9]} 13... Nf5 {[%clk 0:01:38.4]} 14.
Nf4 {[%clk 0:02:40.1]} 14... g5 {[%clk 0:01:34.8]} 15. Nfd5 {[%clk 0:02:17.6]}
15... g4 {[%clk 0:01:20.7]} 16. hxg4 {[%clk 0:02:14.1]} 16... hxg4 {[%clk
0:01:20.2]} 17. Nb5 {[%clk 0:02:12.5]} 17... Bxd5 {[%clk 0:01:12.6]} 18. cxd5
{[%clk 0:01:42.7]} 18... Ne5 {[%clk 0:00:51]} 19. Qa5 {[%clk 0:01:16.3]} 19...
a6 {[%clk 0:00:41.7]} 20. Nd4 {[%clk 0:01:14.8]} 20... Nxd4 {[%clk 0:00:37.1]}
21. Bxd4 {[%clk 0:01:15.7]} 21... Rxh1 {[%clk 0:00:33.1]} 22. Bxh1 {[%clk
0:01:13.8]} 22... Qf5 {[%clk 0:00:30.3]} 23. Qd2 {[%clk 0:01:06.4]} 23... Rh8
{[%clk 0:00:27.3]} 24. e4 {[%clk 0:01:01.4]} 24... Qg6 {[%clk 0:00:26.2]} 25.
Bg2 {[%clk 0:00:33.4]} 25... Rh2 {[%clk 0:00:22.1]} 26. Rg1 {[%clk 0:00:31.7]}
26... Bh6 {[%clk 0:00:18.8]} 27. Be3 {[%clk 0:00:31.3]} 27... Bg7 {[%clk
0:00:19.2]} 28. Qe2 {[%clk 0:00:26.4]} 28... f5 {[%clk 0:00:13.2]} 29. Bf4
{[%clk 0:00:22.9]} 29... Qf6 {[%clk 0:00:11.3]} 30. Bxe5 {[%clk 0:00:13.7]}
30... Qxe5 {[%clk 0:00:10.9]} 31. exf5 {[%clk 0:00:11.1]} 31... Qxe2 {[%clk
0:00:10.2]} 0-1

[Event "*** Titled Tuesday Blitz"]
[Site "Chess.com"]
[Date "2020.04.07"]
[Round "2"]
[White "Zavgorodniy_Serg"]
[Black "DerKnipser"]
[Result "1-0"]
[WhiteElo "2665"]
[BlackElo "2304"]
[TimeControl "180+1"]
[EndTime "13:18:57 PDT"]
[Termination "Zavgorodniy_Serg won by checkmate"]

1. e4 {[%clk 0:02:56.8]} 1... c5 {[%clk 0:02:59.8]} 2. Nf3 {[%clk 0:02:56.4]}
2... d6 {[%clk 0:03:00.6]} 3. c3 {[%clk 0:02:56]} 3... Nf6 {[%clk 0:03:01]} 4.
Bc4 {[%clk 0:02:55.9]} 4... Qa5 {[%clk 0:03:01.1]} 5. Qe2 {[%clk 0:02:53.7]}
5... Nc6 {[%clk 0:03:00.8]} 6. h3 {[%clk 0:02:51.9]} 6... e6 {[%clk 0:02:59.5]}
7. O-O {[%clk 0:02:51.3]} 7... a6 {[%clk 0:02:59.9]} 8. Bb3 {[%clk 0:02:47.4]}
8... Be7 {[%clk 0:02:52.6]} 9. d4 {[%clk 0:02:45.4]} 9... cxd4 {[%clk
0:02:46.7]} 10. cxd4 {[%clk 0:02:46.3]} 10... d5 {[%clk 0:02:40.6]} 11. e5
{[%clk 0:02:43.5]} 11... Nd7 {[%clk 0:02:40.3]} 12. Rd1 {[%clk 0:02:37.1]} 12...
O-O {[%clk 0:02:38.6]} 13. Nbd2 {[%clk 0:02:34.9]} 13... b5 {[%clk 0:02:32.2]}
14. Nf1 {[%clk 0:02:32.7]} 14... Bb7 {[%clk 0:02:22.6]} 15. Bc2 {[%clk
0:02:21.7]} 15... Rfc8 {[%clk 0:02:14.6]} 16. Bb1 {[%clk 0:02:19.4]} 16... Nf8
{[%clk 0:02:13.6]} 17. Ng3 {[%clk 0:02:02.8]} 17... Qb6 {[%clk 0:01:50.5]} 18.
Be3 {[%clk 0:01:42.5]} 18... b4 {[%clk 0:01:47.7]} 19. Qd3 {[%clk 0:01:32.1]}
19... a5 {[%clk 0:01:45.7]} 20. Ng5 {[%clk 0:01:30]} 20... Ba6 {[%clk
0:01:43.8]} 21. Qd2 {[%clk 0:01:24]} 21... a4 {[%clk 0:01:39.9]} 22. f4 {[%clk
0:01:14.2]} 22... Na5 {[%clk 0:01:37.3]} 23. Qf2 {[%clk 0:01:10.3]} 23... Nc4
{[%clk 0:01:23.6]} 24. Bc1 {[%clk 0:01:09.1]} 24... Bxg5 {[%clk 0:01:17.8]} 25.
fxg5 {[%clk 0:01:08.3]} 25... g6 {[%clk 0:01:16.9]} 26. h4 {[%clk 0:01:01.3]}
26... Ra7 {[%clk 0:01:15.5]} 27. h5 {[%clk 0:01:01.1]} 27... Rac7 {[%clk
0:01:05.6]} 28. Nf1 {[%clk 0:01:00.6]} 28... Nd7 {[%clk 0:01:04.2]} 29. Nh2
{[%clk 0:00:53]} 29... Ncxe5 {[%clk 0:00:59.2]} 30. Bf4 {[%clk 0:00:51.2]} 30...
Nc4 {[%clk 0:00:51.8]} 31. Bxc7 {[%clk 0:00:49.4]} 31... Qxc7 {[%clk 0:00:52.2]}
32. Ng4 {[%clk 0:00:48.5]} 32... f5 {[%clk 0:00:43.4]} 33. gxf6 {[%clk
0:00:46.2]} 33... Rf8 {[%clk 0:00:24]} 34. hxg6 {[%clk 0:00:43]} 34... hxg6
{[%clk 0:00:23.4]} 35. Bxg6 {[%clk 0:00:36.6]} 35... Nd6 {[%clk 0:00:13.6]} 36.
Qh4 {[%clk 0:00:33.5]} 36... Nf5 {[%clk 0:00:11.7]} 37. Qh7# {[%clk 0:00:32.5]}
1-0